{"text_format":"3","workbook":"xlsx","n_sheets":4,"sheets":["Sammel-Kostenabrechnung","mit Währungsumrechnung","Beispiel1","Beispiel2"],"not_rendered":{"defined_names":4},"read":"whole","date_system":"1900"}

{"sheet":"Sammel-Kostenabrechnung","index":0,"n_rows":32,"n_cols":7,"rows_kept":32,"merged":[[0,0,0,2],[0,6,20,12],[1,0,1,2],[22,6,23,11],[24,0,24,1],[24,3,24,4],[31,0,31,4]]}
["Musterverein e.V.\nc/o Vereinsvorsitzender\nMusterstraße 1\n12345 Musterstadt",null,null,"Vereinslogo",null,null,"Ausfüllanleitung:\nSpalte A) Datum: Es gilt Datum des Belegs (=Rechnungsdatum)\nSpalte B) Art der Ausgabe angeben; bei Fahrten: Fahrziel und Grund der Fahrt eintragen\nSpalte E) Belegnummer: Alle Belege von 1-x durchnummerieren und hier die jeweilige Belegnummer angeben. Je nach Form des Belegs entsprechend (Papier) oder (digital) dahinter schreiben.\nMaxime: Keine Rückerstattung ohne Beleg.\nDigitale Belege per E-Mail mitsenden, Papier-Belege einseitig auf ein Extrablatt aufkleben.\nVielen Dank.\n\nDurchführung der Abrechnung:\n1. Abrechnungsbogen vollständig ausfüllen (Kontodaten und Kopfzeilen nicht vergessen, nicht benötigte Reiter löschen).\n2. Belege zusammenstellen.\n3. Datei zusammen mit allen digitalen Belegen per E-Mail an den Verantwortlichen für den Bereich sowie den Verantwortlichen für die Buchhaltung schicken.\n4. Papier-Belege per Post schicken (vorab ggf. abfotografieren und mit den Verantwortlichen abklären).\n\nHinweise:\n- Siehe Reiter „Beispiele“ für typische Anwendungsfälle\n- Eine Abrechnung sollte nur Ausgaben aus einem Bereichen / einer Kategorie enthalten. Für weitere Bereiche jeweils eine weitere Abrechnung erstellen.\n- Wenn (auch) Fremdwährungen enthalten sind, dann den Reiter „mit Währungsumrechnung“ verwenden"]
["Sammel-Kostenabrechnung",null,null,"Datum:"]
["Name:",null,"Zeitraum:"]
["Bereich:",null,"Verantwortlicher:"]
[]
["Rechnungs-datum","Fahrziel / Grund / Betreff","Einnahme","Ausgabe","Beleg-Nr."]
{"$rows_empty":14}
["SUMME",null,{"$f":"SUM(C7:C20)","v":{"v":0,"d":"0.00 €"}},{"$f":"SUM(D7:D20)","v":{"v":0,"d":"0.00 €"}}]
[]
["Überweisungs- betrag:",null,{"$f":"C21","v":{"v":0,"d":"0.00 €"}},{"$f":"D21","v":{"v":0,"d":"0.00 €"}},null,null,"Plusbeträge (Einnahmenüberschuss) bitte an Verein rücküberweisen\nMinusbeträge (Ausgabenüberschuss) werden auf das angegebene Konto überwiesen"]
[]
["Kontoverbindung Musterverein e.V.",null,null,"Kontoverbindung\nArbeitnehmer/ Ehrenamtlicher"]
[]
["Name:","Musterverein e.V.",null,"Name:"]
["IBAN:","DE….",null,"IBAN:"]
[]
["Betrag:",{"$f":"C21","v":{"v":0,"d":"0.00 €"}},null,"Betrag:",{"$f":"D23","v":{"v":0,"d":"0.00 €"}}]
[]
["Kein Copyright: Diese Vorlage darf ohne Einschränkungen genutzt, angepasst und weitergegeben werden (CC0). Version 1.1"]

{"sheet":"mit Währungsumrechnung","index":1,"n_rows":32,"n_cols":8,"rows_kept":32,"merged":[[0,0,0,2],[0,6,3,12],[1,0,1,2],[24,0,24,1],[24,3,24,4],[31,0,31,4]]}
["Musterverein e.V.\nc/o Vereinsvorsitzender\nMusterstraße 1\n12345 Musterstadt",null,null,"Vereinslogo",null,null,"Ausfüllanleitung:\n- Umrechnungskurs muss der Kurs vom Rechnungsdatum sein (oder der Abbuchung von Kreditkarte/Konto, falls es die gibt und der Umrechnungskurs daraus hervorgeht)\n- Als Währungsbezeichnung am besten den internationalen Währungscode (drei Großbuchstaben) eintragen"]
["Sammel-Kostenabrechnung",null,null,"Datum:"]
["Name:",null,"Zeitraum:"]
["Bereich:",null,"Verantwortlicher:"]
[]
["Rechnungs-datum","Fahrziel / Grund / Betreff","Einnahme","Ausgabe","Beleg-Nr.","Betrag in auslän-discher Währung","Währung","Umrechnungs-kurs\n(nach €)"]
[{"$nulls":3},{"$f":"IF($H7>0,$F7/$H7,0)","v":{"v":0,"d":"0.00 €"}}]
[{"$nulls":3},{"$f":"IF($H8>0,$F8/$H8,0)","v":{"v":0,"d":"0.00 €"}}]
[{"$nulls":3},{"$f":"IF($H9>0,$F9/$H9,0)","v":{"v":0,"d":"0.00 €"}}]
[{"$nulls":3},{"$f":"IF($H10>0,$F10/$H10,0)","v":{"v":0,"d":"0.00 €"}}]
[{"$nulls":3},{"$f":"IF($H11>0,$F11/$H11,0)","v":{"v":0,"d":"0.00 €"}}]
[{"$nulls":3},{"$f":"IF($H12>0,$F12/$H12,0)","v":{"v":0,"d":"0.00 €"}}]
[{"$nulls":3},{"$f":"IF($H13>0,$F13/$H13,0)","v":{"v":0,"d":"0.00 €"}}]
[{"$nulls":3},{"$f":"IF($H14>0,$F14/$H14,0)","v":{"v":0,"d":"0.00 €"}}]
[{"$nulls":3},{"$f":"IF($H15>0,$F15/$H15,0)","v":{"v":0,"d":"0.00 €"}}]
[{"$nulls":3},{"$f":"IF($H16>0,$F16/$H16,0)","v":{"v":0,"d":"0.00 €"}}]
[{"$nulls":3},{"$f":"IF($H17>0,$F17/$H17,0)","v":{"v":0,"d":"0.00 €"}}]
[{"$nulls":3},{"$f":"IF($H18>0,$F18/$H18,0)","v":{"v":0,"d":"0.00 €"}}]
[{"$nulls":3},{"$f":"IF($H19>0,$F19/$H19,0)","v":{"v":0,"d":"0.00 €"}}]
[{"$nulls":3},{"$f":"IF($H20>0,$F20/$H20,0)","v":{"v":0,"d":"0.00 €"}}]
["SUMME",null,{"$f":"SUM(C7:C20)","v":{"v":0,"d":"0.00 €"}},{"$f":"SUM(D7:D20)","v":{"v":0,"d":"0.00 €"}}]
[]
["Überweisungs- betrag:",null,{"$f":"C21","v":{"v":0,"d":"0.00 €"}},{"$f":"D21","v":{"v":0,"d":"0.00 €"}}]
[]
["Kontoverbindung Musterverein e.V.",null,null,"Kontoverbindung\nArbeitnehmer/ Ehrenamtlicher"]
[]
["Name:","Musterverein e.V.",null,"Name:"]
["IBAN:","DE….",null,"IBAN:"]
[]
["Betrag:",{"$f":"C21","v":{"v":0,"d":"0.00 €"}},null,"Betrag:",{"$f":"D23","v":{"v":0,"d":"0.00 €"}}]
[]
["Kein Copyright: Diese Vorlage darf ohne Einschränkungen genutzt, angepasst und weitergegeben werden (CC0). Version 1.1"]

{"sheet":"Beispiel1","index":2,"n_rows":28,"n_cols":5,"rows_kept":28,"merged":[[0,0,0,2],[1,0,1,2],[22,0,22,1],[22,3,22,4]]}
["Musterverein e.V.\nc/o Vereinsvorsitzender\nMusterstraße 1\n12345 Musterstadt",null,null,"Vereinslogo"]
["Sammel-Kostenabrechnung",null,null,"Datum:",-675525]
["Name:","Timotheus","Zeitraum:",null,"Juni 50"]
["Bereich:","Apostolische Reisen","Verantwortlicher:",null,"Paulus"]
[]
["Rechnungs-datum","Fahrziel / Grund / Betreff","Einnahme","Ausgabe","Beleg-Nr."]
[-675542,"Zugticket\nAnkara - Konya - Ankara",null,{"v":39.99,"d":"39.99 €"},"1 (digital)"]
[-675541,"Flugticket\nAnkara - Antiochia",null,{"v":154.4,"d":"154.40 €"},"2 (digital)"]
[-675541,"Übernachtungskosten Herberge Antiochia",null,{"v":20,"d":"20.00 €"},"3 (Papier)"]
[-675540,"Kilometerabrechnung \nAntiochia - Tarsus (240 km x 0,30 €/km)",null,{"v":72,"d":"72.00 €"}]
{"$rows_empty":8}
["SUMME",null,{"$f":"SUM(C7:C18)","v":{"v":0,"d":"0.00 €"}},{"$f":"SUM(D7:D18)","v":{"v":286.39,"d":"286.39 €"}}]
[]
["Überweisungs- betrag:",null,{"$f":"C19","v":{"v":0,"d":"0.00 €"}},{"$f":"D19","v":{"v":286.39,"d":"286.39 €"}}]
[]
["Kontoverbindung Musterverein e.V.",null,null,"Kontoverbindung\nArbeitnehmer/ Ehrenamtlicher"]
[]
["Name:","Musterverein e.V.",null,"Name:"]
["IBAN:","DE….",null,"IBAN:"]
[]
["Betrag:",{"$f":"C19","v":{"v":0,"d":"0.00 €"}},null,"Betrag:",{"$f":"D21","v":{"v":286.39,"d":"286.39 €"}}]

{"sheet":"Beispiel2","index":3,"n_rows":27,"n_cols":5,"rows_kept":27,"merged":[[0,0,0,2],[1,0,1,2],[21,0,21,1],[21,3,21,4]]}
["Musterverein e.V.\nc/o Vereinsvorsitzender\nMusterstraße 1\n12345 Musterstadt",null,null,"Vereinslogo"]
["Sammel-Kostenabrechnung",null,null,"Datum:",-675525]
["Name:","Timotheus","Zeitraum:",null,"Juni 50"]
["Bereich:","Büro","Verantwortlicher:",null,"Silvanus"]
[]
["Rechnungs-datum","Fahrziel / Grund / Betreff","Einnahme","Ausgabe","Beleg-Nr."]
[-675547,"Portokosten\n10 x 0,80 €",null,{"v":8,"d":"8.00 €"},1]
[-675546,"Büromaterial\n(Kopierpapier, Briefumschläge)",null,{"v":4.39,"d":"4.39 €"},2]
[-675543,"Handyrechnung \n04-05/50",null,{"v":19.99,"d":"19.99 €"},3]
{"$rows_empty":8}
["SUMME",null,{"$f":"SUM(C7:C17)","v":{"v":0,"d":"0.00 €"}},{"$f":"SUM(D7:D17)","v":{"v":32.38,"d":"32.38 €"}}]
[]
["Überweisungs- betrag:",null,{"$f":"C18","v":{"v":0,"d":"0.00 €"}},{"$f":"D18","v":{"v":32.38,"d":"32.38 €"}}]
[]
["Kontoverbindung Musterverein e.V.",null,null,"Kontoverbindung\nArbeitnehmer/ Ehrenamtlicher"]
[]
["Name:","Musterverein e.V.",null,"Name:"]
["IBAN:","DE….",null,"IBAN:"]
[]
["Betrag:",{"$f":"C18","v":{"v":0,"d":"0.00 €"}},null,"Betrag:",{"$f":"D20","v":{"v":32.38,"d":"32.38 €"}}]